bitfinex/quotes_ETHUSD_20260110
["timestamp","ask_amount","ask_price","bid_price","bid_amount"]
[1768042610865,0.90646343,3099.4,3098.7,0.0018008]
[1768042611047,0.30287661,3099.3,3098.8,0.00080552]
[1768042611246,0.90646343,3099.4,3098.8,0.00080552]
[1768042611442,0.30285575,3099.3,3098.8,0.00080552]
[1768042611649,0.90646343,3099.4,3098.8,0.00080552]
[1768042611842,0.30285578,3099.3,3098.8,0.00080552]
[1768042612163,0.90646343,3099.4,3098.8,0.00080552]
[1768042612366,0.30284505,3099.3,3098.8,0.00080552]
[1768042612568,0.90646343,3099.4,3098.8,0.00080552]
[1768042612738,0.30284505,3099.3,3098.8,0.00080552]
[1768042612938,0.90646343,3099.4,3098.8,0.00080552]
[1768042613147,0.30284508,3099.3,3098.8,0.00080552]
[1768042613347,0.90646343,3099.4,3098.8,0.00080552]
[1768042615669,0.90630233,3099.0,3098.8,0.00080552]
[1768042619286,0.002,3099.1,3098.8,0.00080552]
[1768042619464,0.9008827,3099.5,3099.1,0.0008008]
[1768042620382,0.002,3099.7,3099.1,0.0008008]
[1768042621674,0.002,3099.7,3099.1,0.94566182]
[1768042625503,0.002,3099.7,3099.1,1.85476655]
[1768042626806,0.002,3099.7,3099.2,0.95667897]
[1768042627571,0.002,3099.7,3099.2,1.0857664]
[1768042628483,0.002,3099.4,3099.2,1.0857664]
[1768042631209,0.002,3099.4,3099.2,4.31238759]
[1768042631715,0.002,3099.4,3099.2,1.0857664]
[1768042636011,0.002,3099.4,3099.2,0.12908743]
[1768042645993,0.002,3099.4,3099.1,0.2548008]
[1768042646387,0.002,3099.4,3099.1,0.38389156]
[1768042648908,0.9914681,3099.4,3099.1,0.12989156]
[1768042650310,0.9914681,3099.4,3099.1,0.0008008]
[1768042654117,0.002,3099.4,3099.1,0.0008008]
[1768042656521,0.9797534,3099.4,3099.1,0.0008008]
[1768042662106,0.002,3099.4,3099.1,0.0008008]
[1768042668948,0.9777534,3099.5,3099.1,0.0008008]
[1768042671732,0.96900671,3099.7,3099.1,0.0008008]
[1768042676116,0.96900671,3099.7,3099.4,0.001]
[1768042676318,1.41008371,3099.7,3099.4,0.001]
[1768042686824,0.96900671,3099.7,3099.4,0.001]
[1768042710586,0.002,3099.7,3099.4,0.001]
[1768042711287,0.92474388,3099.5,3098.8,0.00080552]
[1768042711780,0.0008008,3099.5,3098.8,0.97434077]
[1768042712781,0.002,3099.4,3098.8,0.97434077]
[1768042713980,0.90985622,3099.4,3098.8,0.00080552]
[1768042725095,0.002,3099.1,3098.8,0.00080552]
[1768042737419,0.002,3099.1,3098.9,0.94450244]
[1768042737618,0.0008008,3099.5,3099.0,1.0187355]
[1768042737807,0.0008008,3099.5,3099.4,0.94450244]
[1768042738117,0.002,3099.7,3099.5,0.94450244]
[1768042744920,0.002804,3100.3,3100.0,0.92041436]
[1768042745125,0.98148193,3101.2,3100.4,0.92041436]
[1768042745994,0.98148193,3101.2,3100.4,1.84082872]
[1768042747328,0.98148193,3101.2,3100.4,5.06621709]
[1768042747721,0.98148193,3101.2,3100.4,1.84082872]
[1768042748020,0.98148193,3101.2,3100.4,5.06621655]
[1768042748824,0.98148193,3101.2,3100.4,1.84082872]
[1768042749855,0.98148193,3101.2,3100.4,5.0662163]
[1768042750052,0.98148193,3101.2,3100.4,1.84082872]
[1768042751624,0.98148193,3101.2,3100.4,5.06621846]
[1768042752727,0.98148193,3101.2,3100.4,1.84082872]
[1768042752927,0.98148193,3101.2,3100.4,5.06620853]
[1768042753958,0.98348193,3101.1,3100.4,5.06620853]
[1768042754457,0.98348193,3101.1,3100.4,1.84082872]
[1768042755254,0.98348193,3101.1,3100.4,0.92041436]
[1768042755255,0.98348193,3101.0,3100.4,0.92041436]
[1768042755457,0.98348193,3101.0,3100.3,0.25481769]
[1768042758047,0.98348193,3101.0,3100.3,0.00081769]
[1768042762270,0.002,3100.7,3100.3,0.00081769]
[1768042767076,0.98348193,3100.7,3100.3,0.00081769]
[1768042768954,0.002,3100.7,3100.3,0.92123205]
[1768042769776,0.002,3100.7,3100.3,0.00081769]
[1768042774275,0.002,3101.0,3100.3,0.90705035]
[1768042775081,0.002,3100.7,3100.3,0.90705035]
[1768042775256,0.002,3100.7,3100.4,0.90623266]
[1768042778284,0.002,3100.7,3100.5,0.90623266]
[1768042787102,0.256,3101.1,3100.6,0.90723266]
[1768042787272,0.25162953,3101.1,3100.6,0.90723266]
[1768042787600,0.25162953,3101.1,3100.6,0.001]
[1768042787979,0.00080232,3101.3,3101.0,0.90623266]
[1768042788274,0.002,3101.6,3101.3,0.90623266]
[1768042788592,0.002,3101.6,3101.3,1.16023266]
[1768042789199,0.002,3101.6,3101.4,0.92550765]
[1768042789386,0.002,3101.6,3101.4,1.13408168]
[1768042792301,0.99412137,3103.5,3102.1,0.96493089]
[1768042792505,0.00081202,3103.8,3103.0,0.00080192]
[1768042792506,0.99412137,3103.6,3103.0,0.00080192]
[1768042792883,0.99493339,3103.8,3103.0,0.00080192]
[1768042793084,0.99493339,3103.8,3103.0,0.96573281]
[1768042793711,0.99493339,3103.8,3103.1,0.96699173]
[1768042794707,0.99412137,3103.7,3103.1,0.96699173]
[1768042797331,0.99412137,3103.7,3103.0,0.00080192]
[1768042798203,0.99412137,3103.6,3103.0,0.00080192]
[1768042799913,0.99412137,3103.5,3103.0,0.00080192]
[1768042800105,0.99412137,3103.3,3102.5,0.96699173]
[1768042800531,0.99412137,3103.3,3102.5,0.96493089]
[1768042801227,0.99412137,3103.3,3102.4,0.96699173]
[1768042801430,0.99412137,3103.3,3102.3,0.96493089]
[1768042801629,0.99412137,3103.2,3102.1,2.18592262]
[1768042801927,0.99412137,3103.2,3102.2,0.96493089]
[1768042802500,0.99412137,3103.0,3102.1,0.96699173]
[1768042802901,0.00325,3102.3,3102.1,1.93192262]
[1768042803096,0.99412137,3102.9,3102.1,1.93192262]
[1768042803701,0.99412137,3102.9,3102.1,0.96493089]
[1768042804397,0.99412137,3102.9,3101.9,0.254]
[1768042804728,0.99412137,3102.9,3102.0,0.94476248]
[1768042805412,0.254,3103.3,3102.0,0.94476248]
[1768042805622,0.92391243,3103.4,3102.2,0.94476248]
[1768042805818,1.17711051,3103.2,3102.2,0.94476248]
[1768042806217,0.92311051,3103.1,3102.2,0.94476248]
[1768042806414,0.92311051,3103.1,3102.3,0.94476248]
[1768042808311,0.92311051,3103.1,3102.4,0.94476248]
[1768042808521,0.254,3103.2,3102.4,0.94476248]
[1768042810131,0.92311051,3103.3,3102.4,0.94476248]
[1768042810338,0.92311051,3103.3,3102.5,0.94476248]
[1768042812638,0.92311051,3103.3,3102.3,4.16814712]
[1768042812843,0.92311051,3103.3,3102.3,0.94476248]
[1768042813137,0.92311051,3103.3,3102.2,3.22350052]
[1768042813511,0.92311051,3103.3,3102.2,4.168263]
[1768042813710,0.92311051,3103.3,3102.3,0.94476248]
[1768042813939,0.92311051,3103.3,3102.3,4.16816525]
[1768042814311,0.92311051,3103.3,3102.4,0.94476248]
[1768042817640,0.92311051,3103.3,3102.3,0.94476248]
[1768042818551,0.92311051,3103.3,3102.3,4.16817072]
[1768042818728,0.92311051,3103.3,3102.3,0.94476248]
[1768042819254,0.92311051,3103.3,3102.3,4.1681578]
[1768042819426,0.92311051,3103.3,3102.4,0.94476248]
[1768042820553,0.92311051,3103.3,3102.2,0.94476248]
[1768042820726,0.92311051,3103.3,3102.3,0.94476248]
[1768042822249,0.92311051,3103.3,3102.3,4.16814041]
[1768042822823,0.92311051,3103.3,3102.3,4.16914041]
[1768042823024,0.002,3103.0,3102.4,0.94476248]
[1768042824779,0.002,3103.0,3102.3,0.001]
[1768042824992,0.002,3103.0,3102.3,0.94576248]
[1768042825287,0.92511051,3103.0,3102.3,0.94576248]
[1768042829249,0.92511051,3103.0,3102.3,0.001]
[1768042830281,0.92511051,3103.0,3102.3,0.94576248]
[1768042830651,0.002,3103.3,3102.3,0.94576248]
[1768042830652,0.002,3103.3,3102.4,0.94476248]
[1768042830853,0.002,3103.3,3102.6,0.94476248]
[1768042831490,0.002,3103.3,3102.7,6.44599864]
[1768042833615,0.002,3103.3,3102.7,7.35730957]
[1768042834709,0.002,3103.3,3102.9,4.13410251]
[1768042835111,0.002,3103.3,3102.9,0.91131093]
[1768042835408,0.002,3103.0,3102.8,3.22285731]
[1768042835591,0.002,3103.0,3102.7,0.91131093]
[1768042835797,0.002,3103.0,3102.7,4.13424648]
[1768042836014,0.002,3103.0,3102.7,4.1342489]
[1768042837391,0.002,3103.0,3102.7,0.91131093]
[1768042837698,0.002,3103.0,3102.7,4.13430453]
[1768042838814,0.002,3103.0,3102.7,3.2229936]
[1768042839619,0.002,3103.0,3102.6,4.13441413]
[1768042840526,0.002,3103.0,3102.7,4.13426263]
[1768042840835,0.002,3103.0,3102.8,0.91131093]
[1768042841615,0.002,3103.0,3102.7,4.13426263]
[1768042843189,0.002,3103.0,3102.7,3.2229517]
[1768042843388,0.002,3103.0,3102.7,3.22298897]
[1768042843590,0.002,3103.0,3102.6,3.22306154]
[1768042844001,0.002,3103.0,3102.7,3.22298413]
[1768042844622,0.002,3103.0,3102.5,4.3875064]
[1768042844822,0.002,3103.0,3102.6,3.22308816]
[1768042845326,0.002,3103.0,3102.5,4.13445305]
[1768042845706,0.002,3103.0,3102.6,3.22308645]
[1768042846712,0.002,3103.0,3102.5,4.13448659]
[1768042847705,0.002,3103.0,3102.9,0.001]
[1768042847904,1.00144004,3103.0,3102.3,3.22437048]
[1768042850930,1.00144004,3103.0,3102.3,0.001]
[1768042859437,1.00144004,3103.0,3102.6,0.001]
[1768042859740,1.00144004,3103.0,3102.3,0.001]
[1768042864530,0.92384801,3102.8,3102.3,0.001]
[1768042864734,0.92384801,3102.6,3102.3,0.001]
[1768042865133,0.92384801,3102.6,3101.8,0.00080216]
[1768042865753,0.92184802,3102.6,3101.8,0.00080216]
[1768042867128,0.92384801,3102.4,3101.8,0.00080216]
[1768042867653,0.92384801,3102.4,3101.7,0.001]
[1768042867858,0.92384801,3102.1,3101.7,0.001]
[1768042876047,0.25480216,3102.2,3101.7,0.001]
[1768042876251,0.92384801,3102.1,3101.7,0.001]
[1768042881498,0.25480216,3102.2,3101.7,0.001]
[1768042883659,1.17865017,3102.2,3101.7,0.001]
[1768042884100,0.92384801,3102.1,3101.7,0.001]
[1768042884818,0.002,3101.8,3101.7,0.001]
[1768042889748,0.002,3101.8,3101.3,0.0008]
[1768042889749,0.92584801,3101.8,3101.3,0.0008]
[1768042889951,0.92384801,3101.6,3101.3,0.0008]
[1768042891235,0.92384801,3101.2,3100.6,0.001]
[1768042891413,0.92384801,3101.0,3100.6,0.001]
[1768042893716,0.92184802,3101.0,3100.6,0.001]
[1768042895619,0.254,3101.1,3100.6,0.001]
[1768042898039,1.16703277,3101.1,3100.6,0.001]
[1768042909687,1.16703277,3101.1,3100.9,0.001]
[1768042909865,1.16703277,3101.1,3100.6,0.001]
[1768042910364,0.91303277,3101.0,3100.6,0.001]
[1768042915160,0.254,3101.1,3100.6,0.001]
[1768042916766,0.69571133,3101.1,3100.6,0.001]
[1768042920314,0.999602,3101.0,3100.6,0.001]
[1768042920608,0.69571133,3101.1,3100.6,0.001]
[1768042920831,0.99960208,3101.0,3100.6,0.001]
[1768042920983,0.69571133,3101.1,3100.6,0.001]
[1768042921329,0.99960518,3101.0,3100.6,0.001]
[1768042921487,0.47199784,3100.9,3100.6,0.001]
[1768042921707,0.16953165,3100.9,3100.6,0.001]
[1768042921946,0.69571133,3101.1,3100.9,0.001]
[1768042922131,0.99993551,3101.0,3100.6,0.001]
[1768042922449,0.30264437,3100.9,3100.6,0.001]
[1768042922622,1.63356535,3101.1,3100.6,0.001]
[1768042922823,1.16338499,3101.0,3100.6,0.001]
[1768042923033,0.30267257,3100.9,3100.6,0.001]
[1768042923239,0.16335654,3101.0,3100.6,0.001]
[1768042923410,0.30267043,3100.9,3100.6,0.001]
[1768042923610,0.16335654,3101.0,3100.6,0.001]
[1768042923905,0.30267043,3100.9,3100.6,0.001]
[1768042924111,0.16335654,3101.0,3100.6,0.001]
[1768042924310,0.30266859,3100.9,3100.6,0.001]
[1768042924509,0.16335654,3101.0,3100.6,0.001]
[1768042924710,0.30266851,3100.9,3100.6,0.001]
[1768042925027,0.254,3101.1,3100.6,0.92950764]
[1768042925206,1.00001458,3101.0,3100.6,0.92950764]
[1768042925411,0.302668,3100.9,3100.6,0.92950764]
[1768042925641,0.254,3101.1,3100.6,0.92950764]
[1768042925822,1.00001208,3101.0,3100.6,0.92950764]
[1768042926022,0.30266742,3100.9,3100.6,0.92950764]
[1768042926244,0.254,3101.1,3100.6,0.92950764]
[1768042926445,1.00001112,3101.0,3100.6,0.92950764]
[1768042926614,0.30266714,3100.9,3100.6,0.92950764]
[1768042926811,0.254,3101.1,3100.6,0.92950764]
[1768042927032,1.00001109,3101.0,3100.6,0.92950764]
[1768042927244,0.3026672,3100.9,3100.6,0.92950764]
[1768042927442,0.254,3101.1,3100.6,0.92950764]
[1768042927608,1.00001077,3101.0,3100.6,0.92950764]
[1768042927951,0.30266712,3100.9,3100.6,0.92950764]
[1768042928123,0.254,3101.1,3100.6,0.92950764]
[1768042928322,1.00001089,3101.0,3100.6,0.92950764]
[1768042928525,0.30266724,3100.9,3100.6,0.92950764]
[1768042928723,0.254,3101.1,3100.6,0.92950764]
[1768042928924,1.00001061,3101.0,3100.6,0.92950764]
[1768042929141,0.30266724,3100.9,3100.6,0.92950764]
[1768042929346,0.254,3101.1,3100.6,0.92950764]
[1768042929645,1.00001059,3101.0,3100.6,0.92950764]
[1768042929845,0.30266763,3100.9,3100.6,0.92950764]
[1768042930062,0.254,3101.1,3100.6,0.92950764]
[1768042930236,1.00001095,3101.0,3100.6,0.92950764]
[1768042930565,0.30266799,3100.9,3100.6,0.92950764]
[1768042930755,0.254,3101.1,3100.6,0.92950764]
[1768042930945,1.00001116,3101.0,3100.6,0.92950764]
[1768042931145,0.30266823,3100.9,3100.6,0.92950764]
[1768042931465,0.254,3101.1,3100.6,0.92950764]
[1768042931636,1.00001197,3101.0,3100.6,0.92950764]
[1768042931841,0.30266901,3100.9,3100.6,0.92950764]
[1768042932148,0.254,3101.1,3100.6,0.92950764]
[1768042932332,1.00001312,3101.0,3100.6,0.92950764]
[1768042932535,0.30267016,3100.9,3100.6,0.92950764]
[1768042932831,0.254,3101.1,3100.6,0.92950764]
[1768042933035,1.00001345,3101.0,3100.6,0.92950764]
[1768042933338,0.30267022,3100.9,3100.6,0.92950764]
[1768042933536,0.254,3101.1,3100.6,0.92950764]
[1768042933735,1.00001685,3101.0,3100.6,0.92950764]
[1768042933986,0.254,3101.1,3100.9,0.001]
[1768042934135,1.00001684,3101.0,3100.6,0.92950764]
[1768042934438,0.30267194,3100.9,3100.6,0.001]
[1768042934635,0.254,3101.1,3100.6,0.001]
[1768042934934,1.00002052,3101.0,3100.6,0.001]
[1768042935134,0.30267406,3100.9,3100.6,0.001]
[1768042935347,0.254,3101.1,3100.6,0.001]
[1768042935548,1.00002605,3101.0,3100.6,0.001]
[1768042935835,0.3026766,3100.9,3100.6,0.001]
[1768042936036,0.254,3101.1,3100.6,0.001]
[1768042936247,1.00002691,3101.0,3100.6,0.001]
[1768042936448,0.30267733,3100.9,3100.6,0.001]
[1768042936659,0.254,3101.1,3100.6,0.001]
[1768042936865,1.0000356,3101.0,3100.6,0.001]
[1768042937069,0.30267964,3100.9,3100.6,0.001]
[1768042937275,0.254,3101.1,3100.6,0.001]
[1768042937475,1.00004483,3101.0,3100.6,0.001]
[1768042937644,0.30268319,3100.9,3100.6,0.92950764]
[1768042937844,0.254,3101.1,3100.6,0.92950764]
[1768042938045,1.00004488,3101.0,3100.6,0.92950764]
[1768042938274,0.30268324,3100.9,3100.6,0.92950764]
[1768042938539,0.254,3101.1,3100.6,0.92950764]
[1768042938850,1.00005734,3101.0,3100.6,0.92950764]
[1768042939175,0.30268753,3100.9,3100.6,0.92950764]
[1768042939376,0.254,3101.1,3100.6,0.92950764]
[1768042939576,1.00007705,3101.0,3100.6,0.92950764]
[1768042939778,0.30269297,3100.9,3100.6,0.92950764]
[1768042939976,0.254,3101.1,3100.6,0.92950764]
[1768042940272,1.00007711,3101.0,3100.6,0.92950764]
[1768042940473,0.30269303,3100.9,3100.6,0.92950764]
[1768042940679,0.254,3101.1,3100.6,0.92950764]
[1768042940878,1.00010144,3101.0,3100.6,0.92950764]
[1768042941080,0.3026995,3100.9,3100.6,0.92950764]
[1768042941281,0.254,3101.1,3100.6,0.92950764]
[1768042941491,1.00013365,3101.0,3100.6,0.92950764]
[1768042941785,0.30270794,3100.9,3100.6,0.92950764]
[1768042941999,0.254,3101.1,3100.6,0.92950764]
[1768042942182,1.00013365,3101.0,3100.6,0.92950764]
[1768042942383,0.30270794,3100.9,3100.6,0.92950764]
[1768042942579,0.254,3101.1,3100.6,0.92950764]
[1768042942777,1.0002025,3101.0,3100.6,0.92950764]
[1768042942967,0.30272518,3100.9,3100.6,0.92950764]
[1768042943153,0.254,3101.1,3100.6,0.92950764]
[1768042943353,1.00020286,3101.0,3100.6,0.92950764]
[1768042943566,0.30272554,3100.9,3100.6,0.92950764]
[1768042943894,0.254,3101.1,3100.6,0.92950764]
[1768042944080,1.00020343,3101.0,3100.6,0.001]
[1768042944300,0.30272554,3100.9,3100.6,0.001]
[1768042944603,0.254,3101.1,3100.6,0.001]
[1768042944792,1.00020483,3101.0,3100.6,0.001]
[1768042945093,0.30272593,3100.9,3100.6,0.001]
[1768042945292,0.254,3101.1,3100.6,0.001]
[1768042945612,1.00020491,3101.0,3100.6,0.001]
[1768042945807,0.30272594,3100.9,3100.6,0.001]
[1768042945980,0.254,3101.1,3100.6,0.001]
[1768042946180,1.00020497,3101.0,3100.6,0.001]
[1768042946392,0.302726,3100.9,3100.6,0.001]
[1768042946606,0.254,3101.1,3100.6,0.001]
[1768042946808,1.0002049,3101.0,3100.6,0.001]
[1768042947007,0.30272595,3100.9,3100.6,0.001]
[1768042947217,0.254,3101.1,3100.6,0.001]
[1768042947399,1.00020455,3101.0,3100.6,0.001]
[1768042947600,0.30272595,3100.9,3100.6,0.001]
[1768042947879,0.254,3101.1,3100.6,0.001]
[1768042948109,1.00020473,3101.0,3100.6,0.001]
[1768042948308,0.302726,3100.9,3100.6,0.001]
[1768042948611,0.254,3101.1,3100.6,0.001]
[1768042948812,1.00020447,3101.0,3100.6,0.001]
[1768042949013,0.30272597,3100.9,3100.6,0.001]
[1768042949179,0.254,3101.1,3100.6,0.001]
[1768042949384,1.00020447,3101.0,3100.6,0.001]
[1768042949583,0.30272597,3100.9,3100.6,0.001]
[1768042949884,0.254,3101.1,3100.6,0.001]
[1768042950086,1.00020508,3101.0,3100.6,0.001]
[1768042950284,0.30272603,3100.9,3100.6,0.001]
[1768042950485,0.254,3101.1,3100.6,0.001]
[1768042950685,1.00020531,3101.0,3100.6,0.001]
[1768042950885,0.254,3101.1,3100.2,3.2255736]
[1768042950886,1.00020538,3100.9,3100.2,3.2255736]
[1768042951087,0.69747936,3100.8,3100.3,0.82093913]
[1768042951287,0.69747936,3100.7,3100.3,0.82093913]
[1768042951507,0.69747936,3100.6,3100.3,0.82093913]
[1768042951696,1.1821639,3101.1,3100.3,0.82093913]
[1768042951896,0.30272684,3101.0,3100.3,0.82093913]
[1768042952097,0.30272684,3100.9,3100.3,0.82093913]
[1768042952297,1.1821639,3101.1,3100.3,0.82093913]
[1768042952519,0.30272582,3101.0,3100.3,0.82093913]
[1768042952722,0.30272582,3100.9,3100.3,0.82093913]
[1768042952920,1.1821639,3101.1,3100.3,0.82093913]
[1768042953124,1.21112336,3101.0,3100.3,0.82093913]
[1768042953304,0.30272571,3100.9,3100.3,0.82093913]
[1768042953491,0.90839765,3101.0,3100.3,0.82093913]
[1768042953696,0.30272567,3100.9,3100.3,0.82093913]
[1768042954018,0.90839765,3101.0,3100.3,0.00161769]
[1768042954212,1.21112188,3100.9,3100.3,0.00161769]
[1768042954512,0.90839765,3100.9,3100.3,0.00161769]
[1768042957629,0.90839765,3100.9,3100.6,0.001]
[1768042957832,0.90839765,3100.9,3100.3,0.00161769]
[1768042958400,0.254,3101.1,3100.3,0.00161769]
[1768042958599,0.30272028,3101.0,3100.3,0.00161769]
[1768042958826,0.30272028,3100.9,3100.3,0.00161769]
[1768042959029,0.90839765,3101.0,3100.3,0.00161769]
[1768042959227,0.30271985,3100.9,3100.3,0.00161769]
[1768042959434,0.90839765,3101.0,3100.3,0.00161769]
[1768042959606,0.30271985,3100.9,3100.3,0.00161769]
[1768042959800,0.90839765,3101.0,3100.3,0.00161769]
[1768042959996,0.30271983,3100.9,3100.3,0.00161769]
[1768042960202,0.90839765,3101.0,3100.3,0.00161769]
[1768042960533,0.30271936,3100.9,3100.3,0.00161769]
[1768042960710,0.90839765,3101.0,3100.3,0.00161769]
[1768042960910,0.30271938,3100.9,3100.3,0.00161769]
[1768042961111,0.90839765,3101.0,3100.3,0.00161769]
[1768042961331,0.30271903,3100.9,3100.3,0.00161769]
[1768042961536,0.90839765,3101.0,3100.3,0.00161769]
[1768042961733,0.90839765,3100.8,3100.3,0.00161769]
[1768042963438,0.90839765,3100.6,3100.3,0.00010138]
[1768042963737,0.90839765,3100.5,3100.3,0.00010138]
[1768042967337,0.254,3100.6,3100.3,0.00010138]
[1768042967912,1.16239765,3100.6,3100.3,0.00010138]
[1768042968864,0.254,3100.6,3100.3,0.00010138]
[1768042969852,0.256,3100.6,3100.3,0.00010138]
[1768042976116,0.99619324,3100.5,3100.3,0.00010138]
[1768042981552,0.256,3100.6,3100.3,0.00010138]
[1768042982143,0.99619324,3100.5,3100.3,0.00010138]
[1768042984525,0.99015453,3100.3,3100.0,0.0008016]
[1768042984849,0.99015453,3100.3,3099.9,0.00080408]
[1768042985656,0.99095861,3100.3,3099.8,0.001]
[1768042988520,0.00080408,3100.3,3099.8,0.82032144]
[1768042991054,0.00080408,3100.3,3099.8,4.04632182]
[1768042991356,0.00080408,3100.3,3100.0,0.81932144]
[1768042995041,0.00280408,3100.3,3100.0,0.81932144]
[1768042995360,0.00280408,3100.3,3099.8,0.001]
[1768042995661,0.00280408,3100.3,3099.8,0.82032144]
[1768042998870,0.00280408,3100.3,3099.8,0.001]
[1768042999933,0.99295861,3100.3,3099.8,0.001]
[1768043000348,0.99295861,3100.3,3099.4,0.0008032]
[1768043007546,0.99295861,3100.3,3099.7,0.001]
[1768043008049,0.99015453,3099.9,3099.7,0.001]
[1768043011652,0.99015453,3099.8,3099.7,0.001]
[1768043012872,0.254,3099.9,3099.7,0.001]
[1768043013258,1.21042649,3099.9,3099.7,0.001]
[1768043024961,0.002,3100.0,3099.7,0.001]
[1768043025162,0.254,3099.9,3099.7,0.001]
[1768043041971,0.002,3100.0,3099.7,0.82032144]
[1768043042172,0.256,3100.0,3099.7,0.82032144]
[1768043042778,0.002,3100.0,3099.7,0.82032144]
[1768043048480,0.002,3100.0,3099.7,0.001]
[1768043055012,0.95794678,3100.0,3099.7,0.001]
[1768043056114,0.002,3100.0,3099.7,0.001]
[1768043062109,0.95794678,3100.0,3099.7,0.001]
[1768043109655,0.95794678,3100.0,3099.7,0.95894678]
[1768043110854,0.95794678,3100.0,3099.7,0.001]
[1768043117244,0.95794678,3100.0,3099.6,0.91337545]
[1768043117469,0.95794678,3100.0,3099.4,0.0008032]
[1768043117669,1.24775841,3099.9,3099.4,0.0008032]
[1768043117847,0.94510081,3099.9,3099.4,0.0008032]
[1768043121275,1.24777074,3099.8,3099.4,0.0008032]
[1768043121464,0.254,3099.7,3099.4,0.0008032]
[1768043124479,0.94510081,3099.5,3099.1,0.91417705]
[1768043124654,0.94510081,3099.3,3099.1,0.0008016]
[1768043124844,0.254,3099.2,3099.1,0.0008016]
[1768043164237,0.99957868,3099.4,3099.1,0.0008016]
[1768043164536,0.254,3099.2,3099.1,0.0008016]
[1768043174133,0.96779236,3099.4,3099.1,0.0008016]
[1768043174303,0.254,3099.3,3099.1,0.0008016]
[1768043174719,0.254,3099.2,3099.1,0.0008016]
[1768043177135,0.96779236,3099.7,3099.1,0.0008016]
[1768043177295,0.30282068,3099.6,3099.1,0.0008016]
[1768043177494,0.55682068,3099.5,3099.1,0.0008016]
[1768043177708,0.254,3099.5,3099.1,0.0008016]
[1768043178114,0.30282002,3099.4,3099.1,0.0008016]
[1768043178326,1.22179236,3099.5,3099.1,0.0008016]
[1768043183636,1.22179236,3099.5,3099.4,0.001]
[1768043183806,0.55679243,3099.5,3099.4,0.001]
[1768043188031,0.30279243,3099.5,3099.4,0.001]
[1768043191730,0.254,3099.6,3099.4,0.001]
[1768043202652,0.92103824,3099.8,3099.4,0.001]
[1768043202821,0.254,3099.6,3099.4,0.001]
[1768043210056,0.254,3099.6,3099.1,0.0008016]
[1768043211157,0.30277249,3099.5,3099.1,0.0008016]
[1768043211352,0.254,3099.6,3099.1,0.0008016]
[1768043213158,0.302787,3099.5,3099.1,0.0008016]
[1768043213360,0.254,3099.6,3099.1,0.0008016]
[1768043213563,0.30278703,3099.5,3099.1,0.0008016]
[1768043213762,0.254,3099.6,3099.1,0.0008016]
[1768043214054,0.30278703,3099.5,3099.1,0.0008016]
[1768043214257,0.254,3099.6,3099.1,0.0008016]
[1768043214460,0.30279659,3099.5,3099.1,0.0008016]
[1768043214650,0.254,3099.6,3099.1,0.0008016]
[1768043214830,0.30279659,3099.5,3099.1,0.0008016]
[1768043215031,0.254,3099.6,3099.1,0.0008016]
[1768043215233,0.30279659,3099.5,3099.1,0.0008016]
[1768043215433,0.254,3099.6,3099.1,0.0008016]
[1768043215634,0.3028076,3099.5,3099.1,0.0008016]
[1768043215833,0.254,3099.6,3099.1,0.0008016]
[1768043216133,0.30280757,3099.5,3099.1,0.0008016]
[1768043216334,0.254,3099.6,3099.1,0.0008016]
[1768043216548,0.30282107,3099.5,3099.1,0.0008016]
[1768043216745,0.254,3099.6,3099.1,0.0008016]
[1768043216946,0.30282107,3099.5,3099.1,0.0008016]
[1768043217146,0.254,3099.6,3099.1,0.0008016]
[1768043217348,0.30284365,3099.5,3099.1,0.0008016]
[1768043217533,0.254,3099.6,3099.1,0.0008016]
[1768043217830,0.30284368,3099.5,3099.1,0.0008016]
[1768043218133,0.254,3099.6,3099.1,0.0008016]
[1768043218331,0.30284788,3099.5,3099.1,0.0008016]
[1768043218530,0.254,3099.6,3099.1,0.0008016]
[1768043218764,0.30284788,3099.5,3099.1,0.0008016]
[1768043218962,0.254,3099.6,3099.1,0.0008016]
[1768043219153,0.30284785,3099.5,3099.1,0.0008016]
[1768043219364,0.254,3099.6,3099.4,0.001]
[1768043219555,0.30284945,3099.5,3099.4,0.001]
[1768043231383,0.30284945,3099.5,3099.1,0.0008016]
[1768043231681,1.24909559,3099.6,3099.1,0.0008016]
[1768043231888,0.3028604,3099.5,3099.1,0.0008016]
[1768043232054,1.24909559,3099.6,3099.1,0.0008016]
[1768043232255,0.30286031,3099.5,3099.1,0.0008016]
[1768043232476,1.24909559,3099.6,3099.1,0.0008016]
[1768043232646,0.3028609,3099.5,3099.1,0.0008016]
[1768043232853,1.24909559,3099.6,3099.1,0.0008016]
[1768043233052,0.30286085,3099.5,3099.1,0.0008016]
[1768043233256,1.24909559,3099.6,3099.1,0.0008016]
[1768043233454,0.30286135,3099.5,3099.1,0.0008016]
[1768043233675,1.24909559,3099.6,3099.1,0.0008016]
[1768043233977,0.30286135,3099.5,3099.1,0.0008016]
[1768043234272,1.24909559,3099.6,3099.1,0.0008016]
[1768043234475,0.30286182,3099.5,3099.1,0.0008016]
[1768043234657,1.24909559,3099.6,3099.1,0.0008016]
[1768043234871,0.3028618,3099.5,3099.1,0.0008016]
[1768043235072,0.99509559,3099.5,3099.1,0.0008016]
[1768043242494,0.99509559,3099.5,3099.4,0.001]
[1768043242794,1.29795133,3099.5,3099.1,0.0008016]
[1768043242974,0.99509559,3099.5,3099.1,0.0008016]
[1768043245496,0.99509559,3099.3,3099.1,0.0008016]
[1768043252873,0.9930956,3099.3,3099.1,0.0008016]
[1768043254505,0.97537152,3099.5,3099.1,0.0008016]
[1768043254706,1.27802267,3099.4,3099.1,0.0008016]
[1768043254884,0.97537152,3099.4,3099.1,0.0008016]
[1768043265497,0.97537152,3099.4,3098.8,0.00080552]
[1768043265900,0.97537152,3099.3,3098.8,0.00080552]
[1768043270131,0.97537152,3099.2,3098.8,0.00080552]
[1768043270313,1.64956234,3099.1,3098.8,0.00080552]
[1768043270491,1.22937152,3099.1,3098.8,0.00080552]
[1768043271424,0.254,3099.1,3098.8,0.00080552]
[1768043274507,0.25200001,3099.1,3098.8,0.00080552]
[1768043278436,0.95546117,3099.5,3098.8,0.00080552]